bitfinex-derivatives/quotes_ETHF0:USTF0_20250730
["timestamp","ask_amount","ask_price","bid_price","bid_amount"]
[1753894963691,60.603,3805.6,3805.5,3.4667]
[1753894964195,42.295,3805.6,3805.5,3.4667]
[1753894964395,42.295,3805.6,3805.5,4.28]
[1753894964589,40.8,3805.6,3805.5,4.28]
[1753894964790,59.096,3805.6,3805.5,4.28]
[1753894964996,59.8482,3805.6,3805.5,4.28]
[1753894965695,41.5542,3805.6,3805.5,4.28]
[1753894965896,19.0432,3805.6,3805.5,4.28]
[1753894966298,0.7542,3805.6,3805.5,4.28]
[1753894966497,19.5876,3805.6,3805.5,4.28]
[1753894966998,20.091,3805.6,3805.5,4.28]
[1753894967501,1.803,3805.6,3805.5,4.28]
[1753894967694,40.8,3805.7,3805.6,2.24303]
[1753894967890,41.5542,3805.7,3805.6,4.80553]
[1753894968294,59.08,3805.7,3805.6,4.80553]
[1753894968797,59.8342,3805.7,3805.6,4.80553]
[1753894969594,41.5542,3805.7,3805.6,4.80553]
[1753894969794,40.8,3805.7,3805.6,4.80553]
[1753894969995,59.8262,3805.7,3805.6,4.80553]
[1753894970197,60.567,3805.7,3805.6,4.28]
[1753894970395,60.567,3805.7,3805.6,3.4667]
[1753894970598,60.565,3805.7,3805.6,3.4667]
[1753894970799,60.563,3805.7,3805.6,3.4667]
[1753894971400,42.295,3805.7,3805.6,3.4667]
[1753894971596,42.295,3805.7,3805.6,4.28]
[1753894971899,59.8182,3805.7,3805.6,4.28]
[1753894972396,19.5636,3805.7,3805.6,4.28]
[1753894972801,20.59252,3805.7,3805.6,1.6992]
[1753894972996,1.1696,3805.5,3805.4,2.4746]
[1753894973191,18.264,3805.5,3805.4,3.00016]
[1753894973503,1.0488,3805.7,3805.6,2.24302]
[1753894973702,20.8098,3805.7,3805.6,2.24302]
[1753894974005,3.26567,3805.4,3805.3,1.74356]
[1753894974300,3.26567,3805.4,3804.9,5.33516]
[1753894974301,3.26571,3805.0,3804.9,5.43262]
[1753894974604,21.53171,3805.0,3804.9,1.6992]
[1753894974803,1.9993,3804.6,3804.3,1.2828]
[1753894975004,2.7401,3804.4,3804.3,2.5008]
[1753894975201,2.7401,3804.4,3804.3,3.0003]
[1753894975501,2.7401,3804.4,3804.3,3.9924]
[1753894975700,2.6646,3804.4,3804.3,3.9924]
[1753894975902,43.4646,3804.4,3804.3,3.9924]
[1753894976904,43.4646,3804.4,3804.3,3.4667]
[1753894977100,0.64651,3804.3,3804.2,0.7071]
[1753894977403,2.7401,3804.2,3804.1,3.2078]
[1753894977698,2.7401,3804.2,3804.1,5.4179]
[1753894977904,20.9316,3804.2,3804.1,6.6745]
[1753894978306,61.7316,3804.2,3804.1,6.6745]
[1753894978601,61.7696,3804.2,3804.1,6.6745]
[1753894978800,61.7696,3804.2,3804.1,5.4179]
[1753894979004,1.109,3803.9,3803.8,3.0167]
[1753894979194,20.9439,3803.9,3803.8,3.0167]
[1753894980007,20.9439,3803.9,3803.8,3.5165]
[1753894980503,3.20668,3803.8,3803.7,3.2078]
[1753894980808,3.20675,3803.4,3803.3,3.2078]
[1753894981106,3.20675,3803.4,3803.3,4.2711]
[1753894981107,21.46875,3803.4,3803.3,4.2711]
[1753894981304,62.26875,3803.4,3803.3,1.0633]
[1753894981510,0.52588,3803.1,3803.0,1.9534]
[1753894981703,0.517,3802.6,3802.5,4.2711]
[1753894981904,20.8462,3802.6,3802.5,6.7243]
[1753894982210,2.6809,3802.2,3802.1,6.18701]
[1753894982506,20.9079,3802.2,3802.1,6.18701]
[1753894982899,20.9079,3802.2,3802.1,7.25031]
[1753894983505,20.9079,3802.2,3802.1,6.7243]
[1753894983706,20.9079,3802.2,3802.1,3.5165]
[1753894983908,2.5822,3802.2,3802.1,6.7243]
[1753894984104,20.1154,3802.2,3802.1,7.4769]
[1753894986106,20.1154,3802.2,3802.1,6.7243]
[1753894986107,20.8482,3802.2,3802.1,6.7243]
[1753894986807,20.8482,3802.2,3802.1,3.5165]
[1753894987012,20.9469,3802.2,3802.1,3.5165]
[1753894987213,2.6809,3802.2,3802.1,2.2412]
[1753894987711,20.9349,3802.2,3802.1,3.5165]
[1753894987906,2.5822,3802.2,3802.1,3.5165]
[1753894988108,20.1004,3802.2,3802.1,3.5165]
[1753894988308,20.1004,3802.2,3802.1,4.2691]
[1753894989310,1.8494,3802.5,3802.4,4.04247]
[1753894989614,20.8282,3802.5,3802.4,4.04247]
[1753894990114,20.8916,3802.5,3802.4,4.04247]
[1753894990610,0.52597,3802.4,3802.1,3.2078]
[1753894990815,20.8946,3802.3,3802.2,1.7307]
[1753894991003,20.8946,3802.3,3802.2,2.25669]
[1753894991208,20.8946,3802.3,3802.2,2.76719]
[1753894991404,20.8946,3802.3,3802.2,4.04249]
[1753894991604,2.6456,3802.3,3802.2,4.04249]
[1753894991813,20.8896,3802.3,3802.2,4.04249]
[1753894996011,20.8512,3802.3,3802.2,4.04249]
[1753894998817,20.8756,3802.3,3802.2,4.04249]
[1753894999620,1.3181,3802.3,3802.2,4.04249]
[1753894999822,19.5331,3802.3,3802.2,4.79509]
[1753895000214,20.0644,3802.3,3802.2,4.79509]
[1753895000414,20.7972,3802.3,3802.2,4.79509]
[1753895000716,20.8362,3802.3,3802.2,4.04249]
[1753895002021,20.8606,3802.3,3802.2,4.04249]
[1753895003318,0.7718,3801.9,3801.8,1.78399208]
[1753895003515,20.8496,3801.9,3801.8,0.19464208]
[1753895004218,61.6496,3801.9,3801.8,0.19464208]
[1753895006421,61.6496,3801.9,3801.8,1.25794208]
[1753895008124,61.6496,3801.9,3801.8,0.19464208]
[1753895013627,43.4456,3801.9,3801.8,0.19464208]
[1753895014028,61.6326,3801.9,3801.8,1.24884208]
[1753895015928,42.6494,3801.9,3801.8,3.64594208]
[1753895016134,61.5792,3801.9,3801.8,4.38574208]
[1753895016535,61.5792,3801.9,3801.8,3.64594208]
[1753895016928,40.8,3801.9,3801.8,4.38574208]
[1753895017329,58.985,3801.9,3801.8,4.38574208]
[1753895017933,40.8,3801.9,3801.8,4.38574208]
[1753895018234,58.985,3801.9,3801.8,4.38574208]
[1753895019534,40.8,3801.9,3801.8,4.38574208]
[1753895019735,58.985,3801.9,3801.8,4.38574208]
[1753895020029,18.185,3801.9,3801.8,4.38574208]
[1753895020234,3.04131,3802.2,3802.1,3.97731]
[1753895020434,21.22631,3802.2,3802.1,3.97731]
[1753895020735,62.02631,3802.2,3802.1,3.97731]
[1753895020928,58.985,3802.2,3802.1,4.71711]
[1753895021534,59.7532,3802.2,3802.1,4.71711]
[1753895022630,60.497,3802.2,3802.1,4.71711]
[1753895022830,60.497,3802.2,3802.1,4.1911]
[1753895023036,60.497,3802.2,3802.1,3.4513]
[1753895023337,42.312,3802.2,3802.1,3.4513]
[1753895023638,60.496,3802.2,3802.1,3.4513]
[1753895024039,1.005,3801.9,3801.8,1.35564208]
[1753895024238,20.702,3801.9,3801.8,2.10834208]
[1753895024438,20.702,3801.9,3801.8,2.59174208]
[1753895024639,20.701,3801.9,3801.8,3.64594208]
[1753895024842,20.6993,3801.9,3801.8,4.38574208]
[1753895025343,20.701,3801.9,3801.8,3.64594208]
[1753895025641,20.702,3801.9,3801.8,3.64594208]
[1753895027838,40.8,3802.2,3802.1,3.97731]
[1753895028039,40.8,3802.2,3802.1,4.71711]
[1753895028344,3.04126,3802.5,3802.4,4.1911]
[1753895028533,21.22796,3802.5,3802.4,2.2152]
[1753895028737,0.001,3802.4,3801.8,0.19464208]
[1753895029045,2.518,3801.9,3801.8,0.19464208]
[1753895029243,20.702,3801.9,3801.8,0.19464208]
[1753895029639,61.502,3801.9,3801.8,0.19464208]
[1753895032445,61.502,3801.9,3801.8,1.91674208]
[1753895032745,18.6984,3801.9,3801.8,4.38574208]
[1753895032946,19.4666,3801.9,3801.8,4.38574208]
[1753895033242,0.52598,3802.4,3802.2,4.1911]
[1753895033546,19.9555,3802.3,3802.2,4.1911]
[1753895033746,20.6993,3802.3,3802.2,3.4513]
[1753895034242,1.04037,3802.5,3802.4,1.6444]
[1753895034446,19.22437,3802.5,3802.4,4.1911]
[1753895034846,19.99257,3802.5,3802.4,4.1911]
[1753895035044,0.52604,3801.9,3801.8,6.85374208]
[1753895035349,21.22432,3802.1,3802.0,3.4513]
[1753895035642,21.22702,3802.1,3802.0,3.4513]
[1753895035844,3.04404,3801.9,3801.8,0.19464208]
[1753895036044,21.22704,3801.9,3801.8,0.19464208]
[1753895036241,21.22704,3801.9,3801.8,1.24884208]
[1753895036442,62.02704,3801.9,3801.8,1.91674208]
[1753895036846,62.02704,3801.9,3801.8,0.19464208]
[1753895037044,3.04413,3801.3,3801.2,0.018415]
[1753895037347,21.22713,3801.3,3801.2,1.740515]
[1753895038437,21.22713,3801.3,3801.2,1.072615]
[1753895038642,21.22713,3801.3,3801.2,0.018415]
[1753895039544,21.22713,3801.3,3801.2,1.012615]
[1753895039744,62.02713,3801.3,3801.2,1.012615]
[1753895040450,62.02713,3801.3,3801.2,3.422115]
[1753895040451,62.02613,3801.3,3801.2,3.422115]
[1753895043447,62.02613,3801.3,3801.2,2.686915]
[1753895044852,62.02613,3801.3,3801.2,3.422115]
[1753895047955,43.09763,3801.3,3801.2,2.214915]
[1753895048161,61.98643,3801.3,3801.2,3.422115]
[1753895048863,61.98643,3801.3,3801.2,2.686915]
[1753895049158,61.98643,3801.3,3801.2,0.018415]
[1753895050053,61.98643,3801.3,3801.2,1.012615]
[1753895050660,61.98643,3801.3,3801.2,0.018415]
[1753895050858,65.19423,3801.3,3801.2,0.018415]
[1753895051054,0.52621,3800.7,3800.6,2.42]
[1753895051357,2.96855,3800.4,3800.3,2.6685]
[1753895051560,21.15255,3800.4,3800.3,3.4037]
[1753895051861,61.95255,3800.4,3800.3,3.4037]
[1753895052060,61.95255,3800.4,3800.3,4.1313]
[1753895052958,61.95255,3800.4,3800.3,3.4037]
[1753895053158,61.95255,3800.4,3800.0,0.7352]
[1753895053364,2.96859,3800.1,3800.0,2.9317]
[1753895053560,21.15459,3800.1,3800.0,2.9317]
[1753895053761,21.15459,3800.1,3800.0,2.1965]
[1753895054358,21.15459,3800.1,3800.0,3.4037]
[1753895055361,21.15459,3800.1,3799.8,0.88534453]
[1753895055362,1.49562,3799.9,3799.8,0.88534453]
[1753895055566,21.15362,3799.9,3799.8,0.88534453]
[1753895056071,20.6273,3799.9,3799.8,3.59844453]
[1753895056464,20.6293,3799.9,3799.8,3.59844453]
[1753895060358,20.6293,3799.9,3799.8,2.39124453]
[1753895060763,20.6293,3799.9,3799.8,3.12644453]
[1753895060959,20.6293,3799.9,3799.8,3.59844453]
[1753895062381,19.9255,3799.9,3799.8,4.32604453]
[1753895062670,2.26379,3800.1,3800.0,4.65759]
[1753895062869,20.45179,3800.1,3800.0,4.65759]
[1753895063070,21.15659,3800.1,3800.0,3.4037]
[1753895064070,2.96859,3800.1,3800.0,3.4037]
[1753895064273,21.15659,3800.1,3800.0,3.4037]
[1753895064670,2.26379,3800.1,3800.0,3.4037]
[1753895064873,0.52627,3800.3,3800.2,4.65756]
[1753895065066,0.52627,3800.3,3800.2,4.1313]
[1753895065265,18.71427,3800.3,3800.2,4.1313]
[1753895065469,19.48247,3800.3,3800.2,4.1313]
[1753895065670,19.97817,3800.3,3800.2,4.1313]
[1753895065871,21.15657,3800.3,3800.2,3.4037]
[1753895066070,21.15657,3800.3,3800.2,2.1965]
[1753895066268,21.15657,3800.3,3799.8,3.59844453]
[1753895066269,2.96862,3799.9,3799.8,3.59844453]
[1753895066474,21.15662,3799.9,3799.8,3.59844453]
[1753895066874,21.15662,3799.9,3799.8,1.87954453]
[1753895067569,21.15662,3799.9,3799.8,2.39124453]
[1753895067772,21.15662,3799.9,3799.8,3.12644453]
[1753895068475,21.15662,3799.9,3799.8,3.59844453]
[1753895069669,2.96862,3799.9,3799.8,3.59844453]
[1753895069870,21.15662,3799.9,3799.8,2.39124453]
[1753895070070,21.15662,3799.9,3799.8,1.87954453]
[1753895070573,21.15662,3799.9,3799.8,0.19474453]
[1753895070771,24.36442,3799.9,3799.8,0.19474453]
[1753895071977,65.16442,3799.9,3799.8,0.19474453]
[1753895074678,2.433,3798.9,3798.8,4.0927]
[1753895074980,20.621,3798.9,3798.8,4.0927]
[1753895075580,20.621,3798.9,3798.8,3.349]
[1753895077182,61.421,3798.9,3798.8,3.349]
[1753895077379,61.421,3798.9,3798.8,0.9933]
[1753895077578,2.9595,3798.6,3798.5,0.9933]
[1753895077774,1.2055,3798.3,3798.2,7.84546954]
[1753895078078,2.95951,3798.6,3798.5,4.0927]
[1753895078280,21.14851,3798.6,3798.5,4.0927]
[1753895078477,1.2055,3798.6,3798.5,4.0927]
[1753895078681,3.73423,3799.1,3799.0,4.0927]
[1753895078881,21.92323,3799.1,3799.0,4.0927]
[1753895079081,22.65763,3799.1,3799.0,4.0927]
[1753895079281,63.45763,3799.1,3799.0,4.0927]
[1753895079478,64.18163,3799.1,3799.0,2.1424]
[1753895079683,2.95947,3798.8,3798.7,2.1424]
[1753895079883,21.14747,3798.8,3798.7,2.1424]
[1753895080084,21.14747,3798.8,3798.7,2.853]
[1753895080283,21.14747,3798.8,3798.7,3.349]
[1753895082687,21.14747,3798.8,3798.7,4.0927]
[1753895082884,21.14747,3798.8,3798.7,3.349]
[1753895083690,2.95947,3798.8,3798.7,3.349]
[1753895083888,21.14947,3798.8,3798.7,3.349]
[1753895084688,20.623,3798.8,3798.7,3.349]
[1753895087489,20.623,3798.8,3798.7,1.6451]
[1753895087986,20.623,3798.8,3798.7,0.992]
[1753895088494,1.2055,3798.9,3798.8,4.0927]
[1753895088685,40.8,3799.1,3799.0,1.6464]
[1753895088988,58.989,3799.1,3799.0,4.0927]
[1753895089189,59.7234,3799.1,3799.0,4.0927]
[1753895089994,41.5344,3799.1,3799.0,4.0927]
[1753895090192,59.7234,3799.1,3799.0,4.0927]
[1753895091493,58.989,3799.1,3799.0,7.3005]
[1753895091789,3.2078,3799.9,3799.0,8.2078]
[1753895091990,5.66362,3799.9,3799.8,3.349]
[1753895092183,24.35612,3799.9,3799.8,4.0927]
[1753895092383,65.15612,3799.9,3799.8,4.0927]
[1753895092583,44.0078,3799.9,3799.8,3.349]
[1753895092789,58.989,3799.9,3799.8,7.3005]
[1753895093392,40.8,3799.9,3799.8,7.3005]
[1753895095385,41.5344,3799.9,3799.8,7.3005]
[1753895096991,40.8,3799.9,3799.8,7.3005]
[1753895097585,0.5263,3800.1,3799.9,2.97261]
[1753895097790,1.73176,3800.3,3800.2,4.0927]
[1753895097991,60.71676,3800.3,3800.2,4.0927]
[1753895098597,42.53176,3800.3,3800.2,4.0927]
[1753895098798,60.71676,3800.3,3800.2,4.0927]
[1753895099398,61.43116,3800.3,3800.2,4.0927]
[1753895099901,42.7199,3800.3,3800.2,4.0927]
[1753895100097,60.9049,3800.3,3800.2,4.0927]
[1753895100396,60.1905,3800.3,3800.2,4.0927]
[1753895100601,60.9049,3800.3,3800.2,4.0927]
[1753895101193,60.9049,3800.3,3800.2,3.349]
[1753895101999,60.9029,3800.3,3800.2,4.0353]
[1753895102895,1.2055,3800.3,3800.2,4.0353]
[1753895103100,18.9174,3800.3,3800.2,4.0353]
[1753895103492,59.7174,3800.3,3800.2,4.0353]
[1753895103702,41.5344,3800.3,3800.2,4.0353]
[1753895104193,0.7244,3800.6,3800.2,7.2431]
[1753895104496,0.7144,3801.1,3800.2,7.2431]
[1753895104497,0.7244,3801.1,3801.0,4.56016]
[1753895104894,0.52608,3801.7,3801.2,1.8253]
[1753895105098,0.456,3801.7,3801.6,1.6291]
[1753895105297,18.637,3801.7,3801.6,2.84147]
[1753895105498,41.9804,3801.7,3801.6,2.84147]
[1753895105700,41.9804,3801.7,3801.6,4.56007]
[1753895106200,41.9804,3801.7,3801.6,4.034]
[1753895106795,42.6948,3801.7,3801.6,4.034]
[1753895107200,42.6948,3801.7,3801.6,2.5984]
[1753895107401,42.6948,3801.7,3801.6,3.3477]
[1753895110002,0.2,3801.9,3801.8,4.034]
[1753895110403,1.6612,3802.4,3802.3,2.15509]
[1753895110702,2.17713,3802.8,3802.7,3.3477]
[1753895110904,1.6512,3802.8,3802.7,3.3477]
[1753895111205,0.52587,3803.2,3802.7,3.3477]
[1753895111401,1.8948,3803.1,3803.0,3.87358]
[1753895111598,1.1804,3803.1,3803.0,4.55988]
[1753895111800,3.2078,3803.3,3802.7,1.31482]
[1753895111801,4.3882,3803.3,3803.2,4.034]
[1753895111994,1.1804,3803.3,3803.2,4.034]
[1753895112202,41.9804,3803.3,3803.2,4.034]
[1753895114709,42.6948,3803.3,3803.2,4.034]
[1753895115709,40.8,3803.3,3803.2,4.034]
[1753895115913,1.6612,3803.4,3803.3,3.3477]
[1753895116205,1.6612,3803.4,3803.3,4.034]
[1753895116397,2.3756,3803.4,3803.3,4.034]
[1753895116602,2.3756,3803.4,3803.3,3.3477]
[1753895117206,43.1756,3803.4,3803.3,3.3477]
[1753895117398,0.9368,3802.8,3802.7,3.2078]
[1753895117604,2.3756,3802.8,3802.7,1.139]
[1753895118013,2.3756,3802.8,3802.7,2.1083]
[1753895118414,2.3756,3802.8,3802.7,3.3477]
[1753895119117,2.90157,3802.4,3802.3,6.5555]
[1753895119321,2.3756,3802.4,3802.3,6.5555]
[1753895119516,1.1804,3802.4,3802.3,7.2418]
[1753895119820,0.7244,3802.6,3802.5,4.55995]
[1753895120209,1.46271,3802.9,3802.8,4.034]
[1753895120410,0.9368,3802.9,3802.8,4.034]
[1753895120615,0.9819,3803.0,3802.9,2.895]
[1753895120811,1.24026,3803.3,3803.1,0.52587]
[1753895121017,0.9368,3803.2,3803.1,4.55987]
[1753895121208,40.8,3803.4,3803.2,0.52585]
[1753895121416,1.1804,3803.3,3803.2,2.15495]
[1753895121717,1.1804,3803.3,3803.2,5.36275]
[1753895121918,1.1804,3803.3,3803.2,7.08135]
[1753895122213,1.1804,3803.3,3803.2,7.76765]
[1753895122419,40.8,3803.4,3803.3,2.4049]
[1753895122716,40.8,3803.4,3803.3,4.034]
[1753895122914,1.1804,3803.5,3803.4,4.08124]
[1753895123119,1.1804,3803.5,3803.4,4.55984]
[1753895124218,41.5244,3803.7,3803.6,4.55981]
[1753895124418,1.8612,3803.9,3803.8,3.87348]
[1753895124620,2.5756,3803.9,3803.8,3.87348]
[1753895124815,43.3756,3803.9,3803.8,3.87348]
[1753895125620,42.6612,3803.9,3803.8,4.55978]
[1753895125922,1.8612,3803.9,3803.8,4.55978]
[1753895126219,1.3804,3803.9,3803.8,4.55978]
[1753895126520,0.2,3803.9,3803.8,4.55978]
[1753895128619,0.18684047,3803.9,3803.8,9.55978]
[1753895129027,0.018,3804.3,3804.2,4.42722]
[1753895129218,0.018,3804.3,3804.2,7.63502]
[1753895129825,0.018,3804.3,3804.2,12.63502]
[1753895133128,2.4053,3804.3,3804.2,6.3895]
[1753895133630,2.5473,3804.3,3804.2,4.7371]
[1753895133827,2.5473,3804.3,3804.2,5.2228]
[1753895134025,3.07301,3804.3,3804.2,6.3895]
[1753895134329,3.05505,3804.0,3803.9,1.5293]
[1753895134529,3.05505,3804.0,3803.9,0.9198]
[1753895134725,3.05505,3804.0,3803.9,2.7048]
[1753895135025,2.5293,3804.0,3803.9,3.1817]
[1753895135227,2.4747,3804.0,3803.9,3.1817]
[1753895135426,2.3873,3804.0,3803.9,3.1817]
[1753895136022,0.7342,3804.0,3803.9,3.9015]
[1753895136328,0.7522,3804.3,3804.2,4.42722]
[1753895136527,0.7522,3804.3,3804.2,7.63502]
[1753895136726,0.018,3804.3,3804.2,7.63502]
[1753895137529,2.5473,3804.3,3804.2,6.91522]
[1753895138033,2.5473,3804.3,3804.2,5.26282]
[1753895138535,2.5473,3804.3,3804.2,3.73352]
[1753895138733,2.5473,3804.3,3804.2,5.26282]
[1753895139533,1.2326,3804.3,3804.2,7.63502]
[1753895140634,1.2326,3804.3,3804.2,6.91522]
[1753895140635,2.5473,3804.3,3804.2,6.91522]
[1753895140831,2.4927,3804.3,3804.2,6.91522]
[1753895141635,2.4053,3804.3,3804.2,6.91522]
[1753895141829,1.2326,3804.3,3804.2,7.63502]
[1753895142326,0.018,3804.3,3804.2,7.63502]
[1753895142732,0.4984,3804.3,3804.2,3.73352]
[1753895143039,2.5473,3804.3,3804.2,3.1532]
[1753895143337,2.3873,3803.9,3803.8,3.73358]
[1753895143834,2.3873,3803.9,3803.8,3.2078]
[1753895144231,1.2146,3803.9,3803.8,7.1093]
[1753895144430,2.3873,3803.9,3803.8,6.3895]
[1753895145240,1.6711,3804.3,3804.2,1.5721]
[1753895145438,1.6711,3804.3,3804.2,6.91523]
[1753895145834,2.4053,3804.3,3804.2,6.91523]
[1753895146034,2.4053,3804.3,3804.2,3.73353]
[1753895146338,2.4053,3804.3,3804.2,4.82873]
[1753895146538,2.4053,3804.3,3804.2,6.91523]
[1753895148840,2.4053,3804.3,3804.2,5.74853]
[1753895149237,2.4053,3804.3,3804.2,6.91523]
[1753895150141,0.018,3804.3,3804.2,7.63503]
[1753895150632,2.4341,3805.2,3805.1,2.0549]
[1753895150835,2.4341,3805.2,3805.1,2.5406]
[1753895151236,43.2341,3805.2,3805.1,2.5406]
[1753895151636,43.2161,3805.2,3805.1,3.0175]
[1753895151838,2.3873,3805.2,3805.1,3.7073]
[1753895152643,2.4161,3805.2,3805.1,3.7073]
[1753895152939,2.4341,3804.9,3804.8,3.73344]
[1753895153340,2.4341,3804.9,3804.8,5.26274]
[1753895153844,2.4341,3804.9,3804.8,5.74844]
[1753895154045,2.4341,3804.9,3804.8,6.91514]
[1753895155247,2.4341,3804.9,3804.8,5.74844]
[1753895155742,2.6341,3804.9,3804.8,5.74844]
[1753895156241,2.6341,3804.9,3804.8,5.26274]
[1753895156436,2.6341,3804.9,3804.8,3.73344]
[1753895156632,1.1908,3804.9,3804.4,18.148]
[1753895156837,2.94174,3804.8,3804.7,0.52566]
[1753895157244,2.4161,3804.8,3804.7,0.52566]
[1753895157444,2.4161,3804.8,3804.7,3.70736]
[1753895157644,2.4341,3804.8,3804.7,3.70736]
[1753895158343,1.6962,3804.8,3804.7,3.70736]
[1753895158538,2.3873,3804.8,3804.7,3.70736]
[1753895159245,1.6962,3804.8,3804.7,3.70736]
[1753895159446,0.2,3804.9,3804.8,3.1089]
[1753895159743,2.4957,3804.9,3804.8,3.1089]
[1753895160139,2.4957,3804.9,3804.8,2.4389]
[1753895160344,2.2957,3804.8,3804.7,0.52566]
[1753895160840,0.9496,3804.6,3804.5,0.52567]
[1753895161041,2.2957,3804.6,3804.5,1.40647]
[1753895161241,0.9496,3804.4,3804.3,3.2078]
[1753895161443,2.2957,3804.3,3804.2,0.52571]
[1753895162446,2.82143,3804.2,3804.0,0.52574]
[1753895162646,2.2957,3804.1,3804.0,0.52574]
[1753895162949,2.14328,3803.9,3803.7,0.52578]
[1753895163151,2.2957,3803.8,3803.7,0.52578]
[1753895163345,1.47539,3803.8,3803.6,0.5258]
[1753895163541,43.0957,3803.7,3803.6,0.5258]
[1753895163848,43.0957,3803.7,3803.6,3.6347]
[1753895164048,40.8,3803.7,3803.6,3.6347]
[1753895164250,40.8,3803.7,3803.6,4.3218]
[1753895164748,41.4782,3803.7,3803.6,4.3218]
[1753895165049,0.6782,3803.7,3803.6,4.3218]
[1753895165250,1.1466,3803.7,3803.6,4.3218]
[1753895165842,0.6679,3804.0,3803.9,0.52577]
[1753895166144,2.2957,3804.0,3803.9,3.63467]
[1753895166344,2.2957,3804.0,3803.9,1.5038]
[1753895166550,2.2957,3804.0,3803.8,3.2078]
[1753895166551,2.2957,3803.5,3803.4,3.2078]
[1753895167038,2.2957,3803.5,3802.4,39.85702]
[1753895167039,0.52601,3802.2,3801.8,3.40244208]
[1753895167242,1.6798,3801.9,3801.8,1.60150208]
[1753895167548,1.6798,3801.9,3801.8,0.72070208]
[1753895167742,1.6798,3801.9,3801.8,2.22450208]
[1753895168345,1.6798,3801.9,3801.8,1.69844208]
[1753895168748,1.6798,3801.9,3801.8,2.15784208]
[1753895168947,1.6798,3801.9,3801.8,2.82784208]
[1753895169445,1.6798,3801.9,3801.8,0.19464208]
[1753895170344,0.4851,3801.3,3801.2,0.018415]
[1753895170650,1.1737,3801.3,3801.2,2.651615]
[1753895170843,1.1737,3801.3,3801.2,3.127315]
[1753895171847,1.69983,3801.3,3801.2,0.018415]
[1753895172846,42.49983,3801.3,3801.2,0.018415]
[1753895173048,42.49983,3801.3,3801.2,0.008015]
[1753895176446,60.78583,3801.3,3801.2,0.008015]
[1753895177145,42.49983,3801.3,3801.2,0.008015]
[1753895177350,60.77983,3801.3,3801.2,0.008015]
[1753895178851,41.9737,3801.3,3801.2,0.008015]
[1753895179053,60.2517,3801.3,3801.2,0.008015]
[1753895181353,60.2517,3801.3,3801.2,0.888815]
[1753895182546,41.9737,3801.3,3801.2,1.971215]
[1753895182748,60.2106,3801.3,3801.2,3.116915]
[1753895182953,60.2106,3801.3,3801.2,3.804015]
[1753895183158,60.73673,3801.3,3801.2,0.008015]
[1753895183650,60.2106,3801.3,3801.2,3.116915]
[1753895184048,60.2056,3801.3,3801.2,3.116915]
[1753895184847,41.9466,3801.3,3801.2,3.116915]
[1753895185352,41.9466,3801.3,3801.2,3.804015]
[1753895185752,41.9466,3801.3,3801.2,3.116915]
[1753895186051,41.9466,3801.3,3801.2,0.008015]
[1753895187051,41.9466,3801.3,3801.2,0.888815]
[1753895187256,41.9466,3801.3,3801.2,3.116915]
[1753895187550,60.1986,3801.3,3801.2,3.116915]
[1753895188558,60.2222,3801.3,3801.2,3.116915]
[1753895189456,60.2222,3801.3,3801.2,0.008015]
[1753895190356,60.2102,3801.3,3801.2,0.008015]
[1753895190556,60.2102,3801.3,3801.2,2.110015]
[1753895190858,41.9702,3801.3,3801.2,2.775515]
[1753895191156,60.2052,3801.3,3801.2,3.246215]
[1753895195160,60.2052,3801.3,3801.2,2.775515]
[1753895195358,60.2052,3801.3,3801.2,2.110015]
[1753895195562,60.2052,3801.3,3801.2,3.246215]
[1753895196463,60.1606,3801.3,3801.2,3.947715]
[1753895196669,60.1606,3801.3,3801.2,3.246215]
[1753895197070,60.1782,3801.3,3801.2,3.246215]
[1753895197271,60.1782,3801.3,3801.2,0.008015]
[1753895197674,0.4783,3800.8,3800.7,0.9698]
[1753895197869,22.5889,3800.8,3800.7,0.9698]
[1753895198365,23.11509,3800.8,3800.7,2.102]
[1753895198560,21.4218,3800.8,3799.8,3.40254453]
[1753895198765,1.6475,3800.1,3800.0,3.2382]
[1753895198971,1.6603,3800.1,3800.0,3.2382]
[1753895199269,41.934,3800.1,3800.0,3.2382]
[1753895199471,41.9212,3800.1,3800.0,3.9397]
[1753895199861,41.9212,3800.1,3800.0,1.6179]
[1753895200064,1.1212,3800.0,3799.9,3.9397]
[1753895202777,1.1623,3800.0,3799.9,3.2382]
[1753895202982,1.1671,3800.0,3799.9,3.2382]
[1753895203577,1.1623,3800.0,3799.9,3.2382]
[1753895203771,1.134,3800.0,3799.9,3.2382]
[1753895203971,1.1212,3800.0,3799.9,3.2382]
[1753895204479,19.3502,3800.0,3799.9,3.9397]
[1753895205271,0.52623,3800.6,3800.3,2.5727]
[1753895205472,0.97622,3800.7,3800.6,3.2382]
[1753895205774,3.2206,3800.9,3800.0,0.52631]
[1753895205775,0.97621,3800.8,3800.7,3.9397]
[1753895205975,19.87841,3800.8,3800.7,3.2382]
[1753895206170,19.89121,3800.8,3800.7,1.6179]
[1753895206376,1.00454,3800.5,3800.4,2.7675]
[1753895206580,1.69334,3800.5,3800.4,2.7675]
[1753895207683,1.69334,3800.5,3800.4,3.2382]
[1753895207884,1.1623,3800.5,3800.4,3.2382]
[1753895208285,1.1671,3800.5,3800.4,3.2382]